[Event "Delancey UK Schools 2019 U14"]
[Site "Daventry"]
[Date "2019.09.24"]
[Round "4.9"]
[White "Korsinskij, Nikolas"]
[Black "Sheikh, Anum"]
[Result "0-1"]
[ECO "B80"]
[WhiteElo "1502"]
[BlackElo "1755"]
[Annotator "NA"]
[PlyCount "76"]
[EventDate "2019.09.24"]
[EventCountry "GBR"]
[SourceTitle "playchess.com"]
[Source "ChessBase"]
[SourceQuality "1"]
[TimeControl "40/5400+30:1800+30"]

1. e4 {[%emt 1:10:14]} c5 {[%emt 1:10:11]} 2. Nf3 {[%emt 0:00:26]} e6 {[%emt 0:00:21]} 3. d4 {[%emt 0:00:25]} cxd4 {[%emt 0:00:22]} 4. Nxd4 {[%emt 0:00:24]} Nf6 {[%emt 0:00:21]} 5. Nc3 {[%emt 0:00:27]} d6 {[%emt 0:00:21]} 6. Be3 {[%emt 0:00:26]} a6 {[%emt 0:00:23]} 7. f3 {[%emt 0:00:32]} b5 {[%emt 0:00:43]} 8. Qd2 {[%emt 0:00:34]} Qc7 {[%emt 0:00:29]} 9. a4 {[%emt 0:01:33]} b4 {[%emt 0:01:52]} 10. Na2 {[%emt 0:00:34]} d5 {[%emt 0:01:16]} 11. Nxb4 {[%emt 0:02:50]} dxe4 {[%emt 0:00:26]} 12. O-O-O {[%emt 0:00:41]} Bb7 {[%emt 0:00:56]} 13. Be2 {[%emt 0:09:03]} Be7 {[%emt 0:01:41]} 14. f4 {[%emt 0:01:40]} Nbd7 {[%emt 0:00:42]} 15. g4 {[%emt 0:01:03]} Nd5 {[%emt 0:05:37]} 16. Nxd5 {[%emt 0:01:24]} exd5 {[%emt 0:00:23]} 17. Nf5 {[%emt 0:00:42]} Bf8 {[%emt 0:03:17]} 18. Bd4 {[%emt 0:01:21]} f6 {[%emt 0:00:22]} 19. g5 {[%emt 0:00:53]} O-O-O {[%emt 0:00:27]} 20. Rhg1 {[%emt 0:01:06]} fxg5 {[%emt 0:03:11]} 21. Rxg5 {[%emt 0:01:35]} Nc5 {[%emt 0:01:56]} 22. Nxg7 {[%emt 0:01:00]} Nb3+ {[%emt 0:00:23]} 23. Kb1 {[%emt 0:00:46]} Nxd2+ {[%emt 0:00:22]} 24. Rxd2 {[%emt 0:00:23]} Qxf4 {[%emt 0:01:10]} 25. Bg4+ {[%emt 0:01:05]} Rd7 {[%emt 0:00:28]} 26. Bxd7+ {[%emt 0:00:36]} Kxd7 {[%emt 0:00:22]} 27. Rdg2 {[%emt 0:00:36]} Qf1+ {[%emt 0:00:37]} 28. Ka2 {[%emt 0:00:27]} Qc4+ {[%emt 0:00:22]} 29. b3 {[%emt 0:00:30]} Qxd4 {[%emt 0:00:22]} 30. Nf5 {[%emt 0:00:29]} Qb6 {[%emt 0:00:39]} 31. Ng7 {[%emt 0:00:52]} Bxg7 {[%emt 0:00:54]} 32. Rxg7+ {[%emt 0:00:22]} Kc8 {[%emt 0:00:21]} 33. Rf7 {[%emt 0:00:42]} d4 {[%emt 0:01:04]} 34. Rgg7 {[%emt 0:00:49]} e3 {[%emt 0:00:22]} 35. Rxh7 {[%emt 0:00:26]} Rxh7 {[%emt 0:00:23]} 36. Rxh7 {[%emt 0:00:23]} Qg6 {[%emt 0:00:30]} 37. Rh8+ {[%emt 0:00:34]} Kc7 {[%emt 0:00:22]} 38. Kb2 {[%emt 0:00:26]} e2 {[%emt 0:00:23]} 0-1

[Event "Delancey UK Schools 2019 U14"]
[Site "Daventry"]
[Date "2019.09.24"]
[Round "4.12"]
[White "Anika Rachna Roy"]
[Black "Dicen, Imogen"]
[Result "0-1"]
[ECO "E70"]
[WhiteElo "1392"]
[BlackElo "1509"]
[Annotator "NA"]
[PlyCount "56"]
[EventDate "2019.09.24"]
[EventCountry "GBR"]
[SourceTitle "playchess.com"]
[Source "ChessBase"]
[SourceQuality "1"]
[TimeControl "40/5400+30:1800+30"]

1. d4 {[%emt 1:10:14]} Nf6 {[%emt 1:10:16]} 2. c4 {[%emt 0:00:21]} c5 {[%emt 0:00:29]} 3. d5 {[%emt 0:00:25]} g6 {[%emt 0:00:26]} 4. Nc3 {[%emt 0:00:22]} Bg7 {[%emt 0:00:24]} 5. e4 {[%emt 0:00:29]} d6 {[%emt 0:00:24]} 6. Nge2 {[%emt 0:00:24]} a6 {[%emt 0:00:29]} 7. Ng3 {[%emt 0:00:26]} Nbd7 {[%emt 0:01:21]} 8. Be2 {[%emt 0:01:30]} Qc7 {[%emt 0:00:39]} 9. O-O {[%emt 0:00:58]} O-O {[%emt 0:00:35]} 10. Bd2 {[%emt 0:01:17]} Rb8 {[%emt 0:01:09]} 11. a3 {[%emt 0:01:11]} b6 {[%emt 0:00:43]} 12. Qc2 {[%emt 0:02:04]} Re8 {[%emt 0:01:02]} 13. b4 {[%emt 0:00:49]} Bb7 {[%emt 0:02:02]} 14. Rab1 {[%emt 0:01:38]} Ba8 {[%emt 0:01:11]} 15. Be3 {[%emt 0:02:50]} Rec8 {[%emt 0:01:07]} 16. f4 {[%emt 0:01:00]} Re8 {[%emt 0:02:01]} 17. Qd3 {[%emt 0:02:25]} Rbd8 {[%emt 0:01:09]} 18. Qd2 {[%emt 0:02:44]} e6 {[%emt 0:01:26]} 19. Qa2 {[%emt 0:01:51]} exd5 {[%emt 0:00:49]} 20. bxc5 {[%emt 0:01:45]} Nxc5 {[%emt 0:01:03]} 21. cxd5 {[%emt 0:00:44]} Rb8 {[%emt 0:00:56]} 22. Bf3 {[%emt 0:01:32]} h5 {[%emt 0:01:34]} 23. h4 {[%emt 0:01:05]} Nfd7 {[%emt 0:01:14]} 24. Nce2 {[%emt 0:01:19]} Qd8 {[%emt 0:00:35]} 25. Bxc5 {[%emt 0:01:50]} Nxc5 {[%emt 0:00:28]} 26. Qc4 {[%emt 0:00:56]} b5 {[%emt 0:00:45]} 27. Qc2 {[%emt 0:00:26]} Qe7 {[%emt 0:00:56]} 28. Nc3 {[%emt 0:00:55]} Bd4+ {[%emt 0:00:31]} 0-1

[Event "Delancey UK Schools 2019 U14"]
[Site "Daventry"]
[Date "2019.09.24"]
[Round "4.13"]
[White "Jayanthi, Harshita"]
[Black "Britnell, Jonathan"]
[Result "0-1"]
[ECO "A80"]
[WhiteElo "1217"]
[BlackElo "1650"]
[Annotator "NA"]
[PlyCount "36"]
[EventDate "2019.09.24"]
[EventCountry "GBR"]
[SourceTitle "playchess.com"]
[Source "ChessBase"]
[SourceQuality "1"]
[TimeControl "40/5400+30:1800+30"]

1. d4 {[%emt 1:10:12]} f5 {[%emt 1:10:12]} 2. Nf3 {[%emt 0:00:27]} Nf6 {[%emt 0:00:25]} 3. Bf4 {[%emt 0:00:29]} e6 {[%emt 0:00:22]} 4. e3 {[%emt 0:00:32]} d5 {[%emt 0:00:40]} 5. Bd3 {[%emt 0:00:51]} c6 {[%emt 0:00:22]} 6. a3 {[%emt 0:00:51]} Bd6 {[%emt 0:00:29]} 7. Ne5 {[%emt 0:00:51]} O-O {[%emt 0:00:29]} 8. Qf3 {[%emt 0:01:11]} Nbd7 {[%emt 0:01:20]} 9. Rg1 {[%emt 0:01:59]} Qc7 {[%emt 0:00:56]} 10. Nxd7 {[%emt 0:01:02]} Bxd7 {[%emt 0:00:26]} 11. Bxd6 {[%emt 0:00:50]} Qxd6 {[%emt 0:00:23]} 12. h3 {[%emt 0:00:48]} Ne4 {[%emt 0:00:39]} 13. Qe2 {[%emt 0:01:53]} e5 {[%emt 0:00:53]} 14. f3 {[%emt 0:01:10]} Ng3 {[%emt 0:00:28]} 15. Qd2 {[%emt 0:01:53]} Rae8 {[%emt 0:01:02]} 16. Be2 {[%emt 0:01:38]} exd4 {[%emt 0:02:07]} 17. Qxd4 {[%emt 0:01:02]} c5 {[%emt 0:00:43]} 18. Qd2 {[%emt 0:01:03]} d4 {[%emt 0:00:46]} 0-1

[Event "Delancey UK Schools 2019 U14"]
[Site "Daventry"]
[Date "2019.09.24"]
[Round "5.1"]
[White "Clarke, Connor"]
[Black "Balaji, Aaravamudhan"]
[Result "1/2-1/2"]
[ECO "A45"]
[WhiteElo "1711"]
[BlackElo "2086"]
[Annotator "NA"]
[PlyCount "64"]
[EventDate "2019.09.24"]
[EventCountry "GBR"]
[SourceTitle "playchess.com"]
[Source "ChessBase"]
[SourceQuality "1"]
[TimeControl "40/5400+30:1800+30"]

1. d4 {[%emt 1:10:12]} Nf6 {[%emt 1:10:11]} 2. Nc3 {[%emt 0:00:26]} g6 {[%emt 0:00:23]} 3. Bf4 {[%emt 0:00:22]} Bg7 {[%emt 0:00:23]} 4. e4 {[%emt 0:00:24]} d5 {[%emt 0:00:29]} 5. e5 {[%emt 0:00:46]} Ne4 {[%emt 0:00:26]} 6. Nxe4 {[%emt 0:00:40]} dxe4 {[%emt 0:00:04]} 7. f3 {[%emt 0:00:36]} c5 {[%emt 0:02:20]} 8. dxc5 {[%emt 0:01:56]} Qa5+ {[%emt 0:01:12]} 9. c3 {[%emt 0:01:23]} Qxc5 {[%emt 0:05:21]} 10. Qd4 {[%emt 0:02:53]} Qxd4 {[%emt 0:05:36]} 11. cxd4 {[%emt 0:00:28]} Nc6 {[%emt 0:00:45]} 12. Bb5 {[%emt 0:01:13]} Bd7 {[%emt 0:02:03]} 13. O-O-O {[%emt 0:00:54]} Rc8 {[%emt 0:01:58]} 14. Kb1 {[%emt 0:00:48]} exf3 {[%emt 0:02:08]} 15. Nxf3 {[%emt 0:00:32]} O-O {[%emt 0:01:18]} 16. Be2 {[%emt 0:02:14]} Nb4 {[%emt 0:00:59]} 17. Ne1 {[%emt 0:01:50]} Bf5+ {[%emt 0:00:54]} 18. Ka1 {[%emt 0:02:12]} Rfd8 {[%emt 0:01:04]} 19. a3 {[%emt 0:01:13]} Nd5 {[%emt 0:00:50]} 20. Bd2 {[%emt 0:01:04]} f6 {[%emt 0:00:32]} 21. Nf3 {[%emt 0:01:28]} Nb6 {[%emt 0:00:57]} 22. Ba5 {[%emt 0:02:36]} Rc2 {[%emt 0:00:28]} 23. Bxb6 {[%emt 0:01:13]} axb6 {[%emt 0:00:23]} 24. Bd3 {[%emt 0:00:55]} Bxd3 {[%emt 0:00:35]} 25. Rxd3 {[%emt 0:00:33]} fxe5 {[%emt 0:00:43]} 26. Re1 {[%emt 0:00:41]} Rxg2 {[%emt 0:00:31]} 27. Nxe5 {[%emt 0:00:27]} Rxh2 {[%emt 0:00:30]} 28. Rb3 {[%emt 0:00:38]} Rh4 {[%emt 0:00:43]} 29. Nf3 {[%emt 0:00:57]} Rf4 {[%emt 0:00:23]} 30. Rxe7 {[%emt 0:00:32]} h5 {[%emt 0:00:35]} 31. Ne5 {[%emt 0:00:42]} Rd6 {[%emt 0:00:32]} 32. Rc3 {[%emt 0:01:04]} Rfxd4 {[%emt 0:00:58]} 1/2-1/2

[Event "Delancey UK Schools 2019 U14"]
[Site "Daventry"]
[Date "2019.09.24"]
[Round "5.3"]
[White "Sheikh, Samia Zannat"]
[Black "Woltery, Nicolai"]
[Result "1/2-1/2"]
[ECO "A57"]
[WhiteElo "1512"]
[BlackElo "1864"]
[Annotator "NA"]
[PlyCount "93"]
[EventDate "2019.09.24"]
[EventCountry "GBR"]
[SourceTitle "playchess.com"]
[Source "ChessBase"]
[SourceQuality "1"]
[TimeControl "40/5400+30:1800+30"]

1. d4 {[%emt 1:10:11]} Nf6 {[%emt 1:10:11]} 2. c4 {[%emt 0:00:21]} c5 {[%emt 0:00:21]} 3. d5 {[%emt 0:00:31]} b5 {[%emt 0:00:22]} 4. e3 {[%emt 0:00:42]} g6 {[%emt 0:00:38]} 5. cxb5 {[%emt 0:00:42]} a6 {[%emt 0:00:25]} 6. Nc3 {[%emt 0:00:43]} d6 {[%emt 0:01:22]} 7. Nf3 {[%emt 0:00:59]} Bg7 {[%emt 0:00:14]} 8. Be2 {[%emt 0:00:30]} Nbd7 {[%emt 0:00:56]} 9. O-O {[%emt 0:01:04]} axb5 {[%emt 0:02:14]} 10. Bxb5 {[%emt 0:00:42]} Ba6 {[%emt 0:00:39]} 11. Qe2 {[%emt 0:01:44]} Bxb5 {[%emt 0:00:42]} 12. Qxb5 {[%emt 0:00:41]} O-O {[%emt 0:00:39]} 13. e4 {[%emt 0:00:48]} Ra5 {[%emt 0:02:19]} 14. Qb3 {[%emt 0:01:06]} Qa8 {[%emt 0:01:27]} 15. Bd2 {[%emt 0:00:37]} Rb8 {[%emt 0:01:14]} 16. Qc2 {[%emt 0:00:39]} Ng4 {[%emt 0:01:01]} 17. h3 {[%emt 0:01:27]} Nge5 {[%emt 0:00:42]} 18. Nxe5 {[%emt 0:01:20]} Nxe5 {[%emt 0:01:06]} 19. b3 {[%emt 0:01:00]} Qa6 {[%emt 0:07:02]} 20. a4 {[%emt 0:01:17]} Qa8 {[%emt 0:04:16]} 21. Nb5 {[%emt 0:00:49]} Rbxb5 {[%emt 0:00:34]} 22. Bxa5 {[%emt 0:00:49]} Rxa5 {[%emt 0:00:22]} 23. Rab1 {[%emt 0:00:32]} Qb7 {[%emt 0:00:58]} 24. Rfc1 {[%emt 0:01:03]} Qb4 {[%emt 0:00:38]} 25. Qc3 {[%emt 0:00:51]} Qxc3 {[%emt 0:00:48]} 26. Rxc3 {[%emt 0:00:21]} Nd7 {[%emt 0:00:49]} 27. Rcc1 {[%emt 0:00:30]} Nb6 {[%emt 0:00:38]} 28. Kf1 {[%emt 0:00:29]} h5 {[%emt 0:00:31]} 29. Ke2 {[%emt 0:00:24]} Bd4 {[%emt 0:00:41]} 30. Rc2 {[%emt 0:00:46]} c4 {[%emt 0:00:34]} 31. bxc4 {[%emt 0:00:45]} Rxa4 {[%emt 0:00:48]} 32. Kd3 {[%emt 0:00:53]} Bc5 {[%emt 0:00:28]} 33. Rb3 {[%emt 0:00:25]} Ra1 {[%emt 0:00:29]} 34. f3 {[%emt 0:00:33]} Rd1+ {[%emt 0:00:29]} 35. Ke2 {[%emt 0:00:23]} Rd4 {[%emt 0:00:32]} 36. Rbc3 {[%emt 0:00:33]} Kg7 {[%emt 0:00:36]} 37. Rc1 {[%emt 0:00:30]} Kf6 {[%emt 0:00:28]} 38. g3 {[%emt 0:00:37]} Ke5 {[%emt 0:00:33]} 39. R3c2 {[%emt 0:01:20]} f5 {[%emt 0:00:27]} 40. exf5 {[%emt 0:00:37]} Kxf5 {[%emt 0:00:28]} 41. Rc3 {[%emt 0:30:24]} e5 {[%emt 0:30:32]} 42. dxe6 {[%emt 0:00:50]} Kxe6 {[%emt 0:00:28]} 43. f4 {[%emt 0:00:55]} Kf5 {[%emt 0:00:30]} 44. Kf3 {[%emt 0:00:23]} Rd2 {[%emt 0:00:24]} 45. R1c2 {[%emt 0:00:39]} Rd1 {[%emt 0:00:37]} 46. g4+ {[%emt 0:00:36]} Kf6 {[%emt 0:00:32]} 47. Rg2 {[%emt 0:00:29]} 1/2-1/2

[Event "Delancey UK Schools 2019 U14"]
[Site "Daventry"]
[Date "2019.09.24"]
[Round "5.4"]
[White "Kan, Toby"]
[Black "Yoon, Jacob D"]
[Result "0-1"]
[ECO "C00"]
[WhiteElo "1714"]
[BlackElo "2086"]
[Annotator "NA"]
[PlyCount "128"]
[EventDate "2019.09.24"]
[EventCountry "GBR"]
[SourceTitle "playchess.com"]
[Source "ChessBase"]
[SourceQuality "1"]
[TimeControl "40/5400+30:1800+30"]

1. e4 {[%emt 1:10:12]} e6 {[%emt 1:10:10]} 2. d3 {[%emt 0:00:22]} d5 {[%emt 0:00:27]} 3. Nd2 {[%emt 0:00:21]} Nf6 {[%emt 0:00:31]} 4. g3 {[%emt 0:00:21]} b6 {[%emt 0:00:51]} 5. Bg2 {[%emt 0:00:42]} Bb7 {[%emt 0:00:23]} 6. Qe2 {[%emt 0:00:59]} Be7 {[%emt 0:01:19]} 7. Ngf3 {[%emt 0:00:32]} c5 {[%emt 0:01:17]} 8. O-O {[%emt 0:00:57]} Nc6 {[%emt 0:00:51]} 9. Re1 {[%emt 0:00:50]} Qc7 {[%emt 0:03:24]} 10. a3 {[%emt 0:01:17]} O-O-O {[%emt 0:01:38]} 11. c3 {[%emt 0:01:38]} Rhg8 {[%emt 0:03:07]} 12. b4 {[%emt 0:01:00]} dxe4 {[%emt 0:02:00]} 13. Nxe4 {[%emt 0:01:32]} Nxe4 {[%emt 0:00:51]} 14. dxe4 {[%emt 0:00:21]} h6 {[%emt 0:04:18]} 15. Be3 {[%emt 0:03:41]} Nb8 {[%emt 0:02:43]} 16. Bf4 {[%emt 0:01:46]} Bd6 {[%emt 0:00:52]} 17. Bxd6 {[%emt 0:00:25]} Rxd6 {[%emt 0:00:40]} 18. Nd2 {[%emt 0:01:55]} Ba6 {[%emt 0:02:37]} 19. b5 {[%emt 0:01:19]} Bxb5 {[%emt 0:00:55]} 20. Qxb5 {[%emt 0:00:21]} Rxd2 {[%emt 0:00:21]} 21. e5 {[%emt 0:00:48]} Rgd8 {[%emt 0:00:35]} 22. a4 {[%emt 0:01:36]} a6 {[%emt 0:00:47]} 23. Qb3 {[%emt 0:00:30]} Nc6 {[%emt 0:00:39]} 24. Rab1 {[%emt 0:00:44]} Kb7 {[%emt 0:00:32]} 25. Be4 {[%emt 0:01:01]} Ka7 {[%emt 0:00:11]} 26. f4 {[%emt 0:01:10]} Na5 {[%emt 0:00:42]} 27. Qa3 {[%emt 0:00:36]} f5 {[%emt 0:00:37]} 28. exf6 {[%emt 0:00:37]} gxf6 {[%emt 0:00:22]} 29. Qc1 {[%emt 0:01:13]} e5 {[%emt 0:00:24]} 30. fxe5 {[%emt 0:00:48]} fxe5 {[%emt 0:00:15]} 31. Rb2 Nc4 {[%emt 0:00:49]} 32. Rxd2 {[%emt 0:01:20]} Nxd2 {[%emt 0:00:22]} 33. Bg2 {[%emt 0:00:29]} c4 {[%emt 0:00:30]} 34. Re2 {[%emt 0:00:50]} Qc5+ {[%emt 0:00:21]} 35. Kh1 {[%emt 0:00:37]} Nb3 {[%emt 0:00:26]} 36. Qe1 {[%emt 0:00:38]} Re8 {[%emt 0:00:39]} 37. Qd1 {[%emt 0:00:37]} Re7 {[%emt 0:00:36]} 38. Re4 {[%emt 0:00:45]} Qc7 {[%emt 0:00:46]} 39. h3 {[%emt 0:00:54]} Na5 {[%emt 0:00:29]} 40. Kh2 {[%emt 0:00:30]} Nb7 {[%emt 0:00:24]} 41. Qh5 {[%emt 0:30:44]} Qc5 {[%emt 0:30:35]} 42. Qxh6 {[%emt 0:01:05]} Nd6 {[%emt 0:00:21]} 43. Re2 {[%emt 0:00:39]} e4 {[%emt 0:00:23]} 44. Qf6 {[%emt 0:00:36]} Qe5 45. Qxe5 {[%emt 0:01:13]} Rxe5 {[%emt 0:01:05]} 46. g4 {[%emt 0:00:22]} b5 {[%emt 0:00:22]} 47. axb5 {[%emt 0:00:23]} axb5 {[%emt 0:00:21]} 48. Kg3 {[%emt 0:00:21]} Ka6 {[%emt 0:00:58]} 49. Kf4 {[%emt 0:00:23]} Re7 {[%emt 0:00:33]} 50. Bxe4 {[%emt 0:00:34]} Nxe4 {[%emt 0:00:30]} 51. Rxe4 {[%emt 0:00:21]} Rf7+ {[%emt 0:00:21]} 52. Ke3 {[%emt 0:00:49]} Rh7 {[%emt 0:00:32]} 53. Kd4 {[%emt 0:00:59]} Rxh3 {[%emt 0:00:24]} 54. Re6+ {[%emt 0:00:33]} Ka5 {[%emt 0:00:27]} 55. Re3 {[%emt 0:00:54]} Ka4 {[%emt 0:00:44]} 56. g5 {[%emt 0:00:53]} Rh5 {[%emt 0:00:24]} 57. g6 {[%emt 0:00:34]} Rg5 {[%emt 0:00:24]} 58. Re6 {[%emt 0:00:35]} Kb3 {[%emt 0:00:21]} 59. Rb6 {[%emt 0:00:30]} Rg4+ {[%emt 0:00:28]} 60. Ke5 {[%emt 0:00:30]} Kxc3 {[%emt 0:00:22]} 61. Kf6 {[%emt 0:01:05]} b4 {[%emt 0:00:15]} 62. g7 {[%emt 0:00:23]} b3 {[%emt 0:00:23]} 63. Kf7 {[%emt 0:00:21]} b2 {[%emt 0:00:23]} 64. g8=Q {[%emt 0:00:32]} Kc2 {[%emt 0:00:00]} 0-1

[Event "Delancey UK Schools 2019 U14"]
[Site "Daventry"]
[Date "2019.09.24"]
[Round "5.5"]
[White "Cox, Toby"]
[Black "Saunders, Aron"]
[Result "1-0"]
[ECO "B10"]
[WhiteElo "1616"]
[BlackElo "1428"]
[Annotator "NA"]
[PlyCount "69"]
[EventDate "2019.09.24"]
[EventCountry "GBR"]
[SourceTitle "playchess.com"]
[Source "ChessBase"]
[SourceQuality "1"]
[TimeControl "40/5400+30:1800+30"]

1. e4 {[%emt 1:10:12]} c6 {[%emt 1:10:11]} 2. Bc4 {[%emt 0:00:21]} d5 {[%emt 0:00:21]} 3. Bb3 {[%emt 0:00:21]} e5 {[%emt 0:00:31]} 4. Nc3 {[%emt 0:00:25]} dxe4 {[%emt 0:01:16]} 5. Qh5 {[%emt 0:01:00]} Qc7 {[%emt 0:01:17]} 6. Nxe4 {[%emt 0:00:41]} g6 {[%emt 0:00:49]} 7. Qe2 {[%emt 0:00:23]} f5 {[%emt 0:00:56]} 8. Ng3 {[%emt 0:00:33]} Ne7 {[%emt 0:01:08]} 9. Nf3 {[%emt 0:00:32]} Bg7 {[%emt 0:00:48]} 10. d3 {[%emt 0:00:25]} Qd6 {[%emt 0:01:12]} 11. O-O {[%emt 0:00:50]} Be6 {[%emt 0:00:46]} 12. Bxe6 {[%emt 0:00:21]} Qxe6 {[%emt 0:00:32]} 13. Re1 {[%emt 0:00:51]} Nd7 {[%emt 0:00:43]} 14. c3 {[%emt 0:02:39]} O-O {[%emt 0:01:30]} 15. d4 {[%emt 0:01:10]} e4 {[%emt 0:01:15]} 16. Ng5 {[%emt 0:00:39]} Qd6 {[%emt 0:01:13]} 17. f3 {[%emt 0:01:00]} Nd5 {[%emt 0:02:23]} 18. fxe4 {[%emt 0:00:56]} fxe4 {[%emt 0:00:32]} 19. N5xe4 {[%emt 0:00:34]} Qc7 {[%emt 0:00:39]} 20. Be3 {[%emt 0:01:09]} Rae8 {[%emt 0:00:54]} 21. Qd2 {[%emt 0:00:34]} Nxe3 {[%emt 0:01:10]} 22. Qxe3 {[%emt 0:00:37]} Rf4 {[%emt 0:01:24]} 23. Qd3 {[%emt 0:01:09]} c5 {[%emt 0:01:33]} 24. dxc5 {[%emt 0:01:40]} Nxc5 {[%emt 0:03:16]} 25. Nf6+ {[%emt 0:04:58]} Rxf6 {[%emt 0:00:52]} 26. Rxe8+ {[%emt 0:00:21]} Kf7 {[%emt 0:00:58]} 27. Qe3 {[%emt 0:00:57]} Ne6 {[%emt 0:01:02]} 28. Rxe6 {[%emt 0:02:34]} Rxe6 {[%emt 0:00:29]} 29. Rf1+ {[%emt 0:00:46]} Ke7 {[%emt 0:01:11]} 30. Qg5+ {[%emt 0:02:30]} Ke8 {[%emt 0:01:16]} 31. Qg4 {[%emt 0:01:06]} Qb6+ {[%emt 0:00:45]} 32. Kh1 {[%emt 0:00:23]} Ke7 {[%emt 0:00:38]} 33. Qh4+ {[%emt 0:00:32]} Bf6 {[%emt 0:02:00]} 34. Rxf6 {[%emt 0:01:20]} Rxf6 {[%emt 0:00:42]} 35. Ne4 {[%emt 0:00:24]} 1-0

[Event "Delancey UK Schools 2019 U14"]
[Site "Daventry"]
[Date "2019.09.24"]
[Round "5.6"]
[White "Volovich, Julia"]
[Black "Ismail, Mohammed Aayan"]
[Result "0-1"]
[ECO "E37"]
[WhiteElo "1743"]
[BlackElo "1583"]
[Annotator "NA"]
[PlyCount "111"]
[EventDate "2019.09.24"]
[EventCountry "GBR"]
[SourceTitle "playchess.com"]
[Source "ChessBase"]
[SourceQuality "1"]
[TimeControl "40/5400+30:1800+30"]

1. d4 {[%emt 1:10:12]} e6 {[%emt 1:10:12]} 2. c4 {[%emt 0:00:24]} Nf6 {[%emt 0:00:26]} 3. Nc3 {[%emt 0:00:24]} Bb4 {[%emt 0:01:00]} 4. Qc2 {[%emt 0:00:25]} d5 {[%emt 0:00:50]} 5. a3 {[%emt 0:00:26]} Bxc3+ {[%emt 0:00:23]} 6. Qxc3 {[%emt 0:00:29]} Ne4 {[%emt 0:00:27]} 7. Qc2 {[%emt 0:00:56]} Nc6 {[%emt 0:01:22]} 8. Nf3 {[%emt 0:01:42]} a5 {[%emt 0:01:13]} 9. e3 {[%emt 0:03:27]} O-O {[%emt 0:00:43]} 10. Bd3 {[%emt 0:01:19]} f5 {[%emt 0:00:22]} 11. Bd2 {[%emt 0:02:17]} Kh8 {[%emt 0:01:07]} 12. h3 {[%emt 0:01:14]} Qf6 {[%emt 0:01:08]} 13. Bc3 {[%emt 0:01:34]} a4 {[%emt 0:00:54]} 14. c5 {[%emt 0:02:50]} Bd7 {[%emt 0:03:39]} 15. Bb5 {[%emt 0:02:46]} Nb8 {[%emt 0:01:19]} 16. Bd3 {[%emt 0:00:26]} Nc6 {[%emt 0:00:28]} 17. O-O-O {[%emt 0:03:05]} Na5 {[%emt 0:02:19]} 18. Bxa5 {[%emt 0:00:32]} Rxa5 {[%emt 0:00:23]} 19. Ne5 {[%emt 0:00:24]} Be8 {[%emt 0:01:45]} 20. h4 {[%emt 0:01:34]} Nxc5 {[%emt 0:01:32]} 21. Qc3 {[%emt 0:01:43]} Nb3+ {[%emt 0:00:22]} 22. Kb1 {[%emt 0:00:38]} c5 {[%emt 0:01:37]} 23. Bc2 {[%emt 0:01:11]} cxd4 {[%emt 0:01:02]} 24. exd4 {[%emt 0:00:21]} Rb5 {[%emt 0:01:37]} 25. Bd3 {[%emt 0:00:34]} Ra5 {[%emt 0:02:02]} 26. Bc2 {[%emt 0:00:28]} Rb5 {[%emt 0:01:15]} 27. Rh3 {[%emt 0:01:04]} Qe7 {[%emt 0:02:50]} 28. Bd3 {[%emt 0:00:43]} Rb6 {[%emt 0:00:30]} 29. Re1 {[%emt 0:00:37]} Bb5 {[%emt 0:00:52]} 30. Bxb5 {[%emt 0:00:31]} Rxb5 {[%emt 0:00:23]} 31. Rhe3 {[%emt 0:00:30]} Qxh4 {[%emt 0:01:00]} 32. Ng6+ {[%emt 0:00:47]} hxg6 {[%emt 0:00:24]} 33. Rh3 {[%emt 0:00:22]} Qxh3 {[%emt 0:00:25]} 34. Qxh3+ {[%emt 0:00:27]} Kg8 {[%emt 0:00:23]} 35. Qc3 {[%emt 0:00:27]} Re8 {[%emt 0:00:50]} 36. Rxe6 {[%emt 0:00:51]} Rxe6 {[%emt 0:00:42]} 37. Qc8+ {[%emt 0:00:21]} Kf7 {[%emt 0:00:23]} 38. Qd7+ {[%emt 0:00:21]} Re7 {[%emt 0:00:29]} 39. Qxb5 {[%emt 0:00:22]} Nxd4 {[%emt 0:00:32]} 40. Qxd5+ {[%emt 0:00:23]} Ne6 {[%emt 0:00:23]} 41. Qc4 {[%emt 0:30:25]} Rc7 {[%emt 0:30:31]} 42. Qxa4 {[%emt 0:00:23]} Nc5 {[%emt 0:00:28]} 43. Qc4+ {[%emt 0:00:25]} Ne6 {[%emt 0:00:22]} 44. Qe2 {[%emt 0:00:31]} Nd4 {[%emt 0:00:38]} 45. Qe5 {[%emt 0:00:32]} Rd7 {[%emt 0:00:22]} 46. g4 {[%emt 0:00:36]} Nf3 {[%emt 0:00:37]} 47. Qf4 {[%emt 0:00:32]} Nd4 {[%emt 0:00:39]} 48. gxf5 {[%emt 0:00:27]} gxf5 {[%emt 0:00:25]} 49. b4 {[%emt 0:00:35]} g6 {[%emt 0:00:22]} 50. Kb2 {[%emt 0:00:52]} b5 {[%emt 0:00:34]} 51. Qe5 {[%emt 0:00:34]} g5 {[%emt 0:00:40]} 52. Kc3 {[%emt 0:00:34]} g4 {[%emt 0:00:26]} 53. Qc5 {[%emt 0:00:46]} Ke6 {[%emt 0:00:39]} 54. Qb6+ {[%emt 0:00:25]} Rd6 {[%emt 0:00:12]} 55. Qa6 {[%emt 0:00:29]} Rxa6 {[%emt 0:00:35]} 56. Kxd4 {[%emt 0:00:22]} 0-1

[Event "Delancey UK Schools 2019 U14"]
[Site "Daventry"]
[Date "2019.09.24"]
[Round "5.7"]
[White "Sheikh, Anum"]
[Black "Headlong, Georgia"]
[Result "1-0"]
[ECO "C42"]
[WhiteElo "1755"]
[BlackElo "1464"]
[Annotator "NA"]
[PlyCount "57"]
[EventDate "2019.09.24"]
[EventCountry "GBR"]
[SourceTitle "playchess.com"]
[Source "ChessBase"]
[SourceQuality "1"]
[TimeControl "40/5400+30:1800+30"]

1. e4 {[%emt 1:10:12]} e5 {[%emt 1:10:11]} 2. Nf3 {[%emt 0:00:21]} Nf6 {[%emt 0:00:22]} 3. Nxe5 {[%emt 0:00:22]} d6 {[%emt 0:00:21]} 4. Nf3 {[%emt 0:00:25]} Nxe4 {[%emt 0:00:22]} 5. Nc3 {[%emt 0:00:21]} Nxc3 {[%emt 0:00:22]} 6. dxc3 {[%emt 0:00:22]} Be7 {[%emt 0:00:28]} 7. Bd3 {[%emt 0:00:24]} O-O {[%emt 0:00:37]} 8. Be3 {[%emt 0:00:23]} Nc6 {[%emt 0:00:50]} 9. Qd2 {[%emt 0:00:24]} Be6 {[%emt 0:01:02]} 10. h4 {[%emt 0:00:27]} Ne5 {[%emt 0:01:30]} 11. Ng5 {[%emt 0:01:55]} Bxg5 {[%emt 0:01:56]} 12. hxg5 {[%emt 0:00:46]} Ng6 {[%emt 0:00:41]} 13. O-O-O {[%emt 0:01:27]} a5 {[%emt 0:01:36]} 14. Kb1 {[%emt 0:00:25]} f6 {[%emt 0:02:29]} 15. Rxh7 {[%emt 0:02:57]} Kxh7 {[%emt 0:01:37]} 16. Rh1+ {[%emt 0:00:22]} Kg8 {[%emt 0:00:25]} 17. Bxg6 {[%emt 0:00:23]} Bf7 {[%emt 0:01:03]} 18. Bh7+ {[%emt 0:00:23]} Kh8 {[%emt 0:00:38]} 19. gxf6 {[%emt 0:00:45]} Qxf6 {[%emt 0:02:20]} 20. Bd4 {[%emt 0:00:21]} Qe7 {[%emt 0:00:41]} 21. Qh6 {[%emt 0:00:25]} Bxa2+ {[%emt 0:01:50]} 22. Kxa2 {[%emt 0:00:24]} Rf6 {[%emt 0:01:11]} 23. Bxf6 {[%emt 0:00:26]} Qxf6 {[%emt 0:00:24]} 24. Qxf6 {[%emt 0:00:37]} gxf6 {[%emt 0:00:24]} 25. Be4+ {[%emt 0:00:22]} Kg7 {[%emt 0:00:23]} 26. Rh7+ {[%emt 0:00:22]} Kg8 {[%emt 0:00:26]} 27. Rxc7 {[%emt 0:00:23]} Re8 {[%emt 0:00:24]} 28. Bd5+ {[%emt 0:00:31]} Kh8 {[%emt 0:00:27]} 29. Rxb7 {[%emt 0:00:24]} 1-0